fUSD/lending_fUSD_20240216
["ID","MTS","AMOUNT","RATE_DAILY","PERIOD"]
[314204168,1708077059649,-152.15,0.000411,4]
[314204169,1708077059658,-152.15,0.000411,4]
[314204170,1708077059667,-152.15,0.000411,4]
[314204171,1708077059677,-152.15,0.000411,4]
[314204172,1708077059686,-1418.78,0.00041108,2]
[314204173,1708077059695,-18036.20074901,0.0004111,2]
[314204174,1708077059704,-200.0,0.00041112,15]
[314204175,1708077059713,-800.0,0.00041112,20]
[314204176,1708077059723,-200.0,0.00041112,20]
[314204177,1708077059732,-500.0,0.00041112,20]
[314204178,1708077059741,-180.36270987,0.00041112,30]
[314204179,1708077059751,-303.61776293,0.00041119,2]
[314204180,1708077059760,-150.0,0.00041136,2]
[314204181,1708077059769,-150.0,0.00041141,2]
[314204182,1708077059779,-434.73,0.00041147,2]
[314204183,1708077059788,-151.021633,0.00041148,24]
[314204184,1708077059797,-150.0,0.00041153,2]
[314204185,1708077059887,-156.0,0.0004117,7]
[314204186,1708077059896,-150.45,0.00041187,2]
[314204187,1708077059906,-209.021633,0.00041198,26]
[314204188,1708077059916,-150.0,0.00041205,2]
[314204189,1708077059927,-153.0,0.00041214,7]
[314204190,1708077059936,-5738.22054872,0.00041217,15]
[314204191,1708077059946,-150.0,0.00041238,2]
[314204192,1708077059955,-151.021633,0.00041248,25]
[314204193,1708077059964,-150.0,0.00041256,2]
[314204194,1708077059974,-150.0,0.00041264,2]
[314204195,1708077059983,-150.0,0.00041295,2]
[314204196,1708077059992,-444.38,0.00041297,2]
[314204197,1708077060002,-200.0,0.000413,15]
[314204198,1708077060012,-156.0,0.00041307,7]
[314204199,1708077060022,-1418.78,0.00041308,2]
[314204200,1708077060031,-150.0,0.00041312,2]
[314204201,1708077060042,-186.83697916,0.00041319,2]
[314204202,1708077060052,-150.0,0.00041327,2]
[314204203,1708077060062,-160.0,0.00041333,30]
[314204204,1708077060072,-200.0,0.00041333,20]
[314204205,1708077060082,-150.0,0.00041341,2]
[314204206,1708077060092,-151.021633,0.00041348,25]
[314204207,1708077060102,-151.021633,0.00041348,26]
[314204208,1708077060111,-153.0,0.00041351,7]
[314204209,1708077060120,-152.6,0.0004136,2]
[314204210,1708077060130,-185.250615,0.0004137,14]
[314204211,1708077060139,-161.72,0.00041386,2]
[314204212,1708077060148,-221.72460361,0.00041398,2]
[314204213,1708077060157,-2000.0,0.0004141,7]
[314204214,1708077060167,-200.0,0.0004141,7]
[314204215,1708077060176,-200.0,0.0004141,7]
[314204216,1708077060186,-150.0,0.00041419,2]
[314204217,1708077060196,-150.0,0.00041435,2]
[314204218,1708077060205,-155.0,0.00041436,2]
[314204219,1708077060214,-177.38,0.00041436,2]
[314204220,1708077060224,-150.0,0.00041443,2]
[314204221,1708077060233,-156.0,0.00041444,7]
[314204222,1708077060243,-150.0,0.00041446,2]
[314204223,1708077060252,-151.021633,0.00041448,25]
[314204224,1708077060261,-150.0,0.00041456,2]
[314204225,1708077060271,-150.0,0.00041461,2]
[314204226,1708077060281,-352.0,0.00041465,7]
[314204227,1708077060290,-198.0,0.00041465,7]
[314204228,1708077060299,-219.0,0.00041465,7]
[314204229,1708077060309,-150.0,0.00041465,7]
[314204230,1708077060319,-154.29521659,0.00041481,2]
[314204231,1708077060328,-153.0,0.00041488,7]
[314204232,1708077060338,-150.0,0.00041489,2]
[314204233,1708077060347,-150.45,0.00041493,2]
[314204234,1708077060357,-1160.38592263,0.00041495,5]
[314204235,1708077060366,-2359.67,0.000415,30]
[314204236,1708077060375,-230.29,0.000415,10]
[314204237,1708077060385,-152.15,0.000415,4]
[314204238,1708077060394,-152.15,0.000415,4]
[314204239,1708077060403,-152.15,0.000415,4]
[314204240,1708077060412,-152.15,0.000415,4]
[314204241,1708077060422,-152.15,0.000415,4]
[314204242,1708077060431,-152.15,0.000415,4]
[314204243,1708077060441,-152.15,0.000415,4]
[314204244,1708077060450,-152.15,0.000415,4]
[314204245,1708077060460,-152.15,0.000415,4]
[314204246,1708077060469,-152.15,0.000415,4]
[314204247,1708077060478,-152.15,0.000415,4]
[314204248,1708077060487,-152.15,0.000415,4]
[314204249,1708077060497,-152.15,0.000415,4]
[314204250,1708077060506,-152.15,0.000415,4]
[314204251,1708077060515,-152.15,0.000415,4]
[314204252,1708077060524,-152.15,0.000415,4]
[314204253,1708077060533,-152.15,0.000415,4]
[314204254,1708077060542,-152.15,0.000415,4]
[314204255,1708077060552,-152.15,0.000415,4]
[314204256,1708077060561,-2866.84769452,0.00041504,2]
[314204257,1708077060570,-1418.78,0.00041507,2]
[314204258,1708077060579,-150.0,0.00041509,2]
[314204259,1708077060588,-150.0,0.00041515,2]
[314204260,1708077060597,-202.54557145,0.00041528,2]
[314204261,1708077060607,-2265.77334798,0.00041533,2]
[314204262,1708077060617,-501.82771864,0.00041538,2]
[314204263,1708077060626,-13460.89210793,0.00041539,2]
[314204264,1708077060635,-151.021633,0.00041548,26]
[314204265,1708077060645,-151.021633,0.00041548,27]
[314204266,1708077060656,-5738.22054872,0.00041554,15]
[314204267,1708077060665,-200.0,0.00041554,15]
[314204268,1708077060674,-800.0,0.00041554,20]
[314204269,1708077060684,-200.0,0.00041554,20]
[314204270,1708077060693,-166.66666668,0.00041559,30]
[314204271,1708077060702,-150.0,0.00041569,2]
[314204272,1708077060711,-156.0,0.00041581,7]
[314204273,1708077060720,-150.0,0.00041583,2]
[314204274,1708077060730,-1500.0,0.00041592,2]
[314204275,1708077060739,-525.67023614,0.000416,3]
[314204276,1708077060748,-150.0,0.0004162,2]
[314204277,1708077060757,-312.88350096,0.00041629,15]
[314204278,1708077060766,-2479.11543,0.0004163,10]
[314204279,1708077060775,-817.67,0.00041643,7]
[314204280,1708077060784,-648.94620328,0.00041643,120]
[314204281,1708077060794,-241.1,0.00041644,2]
[314204282,1708077060803,-150.0,0.00041644,2]
[314204283,1708077060812,-150.0,0.00041644,2]
[314204284,1708077060821,-151.021633,0.00041648,26]
[314204285,1708077060830,-150.0,0.00041656,2]
[314204286,1708077060839,-963.07272245,0.00041659,3]
[314204287,1708077060849,-26377.38653403,0.00041659,3]
[314204288,1708077060858,-150.0,0.0004166,2]
[314204289,1708077060868,-150.0,0.00041697,2]
[314204290,1708077060877,-150.0,0.00041699,60]
[314204291,1708077060886,-3342.0,0.000417,87]
[314204292,1708077060896,-2760.0,0.000417,87]
[314204293,1708077060905,-150.0,0.00041702,2]
[314204294,1708077060915,-1418.78,0.00041707,2]
[314204295,1708077060925,-150.0,0.00041717,2]
[314204296,1708077060936,-156.0,0.00041718,7]
[314204297,1708077060945,-151.021633,0.00041748,26]
[314204298,1708077060954,-152.6,0.0004175,2]
[314204299,1708077060964,-160.0,0.00041754,30]
[314204300,1708077060974,-150.0,0.00041764,2]
[314204301,1708077060983,-200.0,0.00041777,16]
[314204302,1708077060997,-200.0,0.00041777,15]
[314204303,1708077061009,-200.0,0.00041777,14]
[314204304,1708077061018,-150.0,0.00041781,2]
[314204305,1708077061028,-1845.78687011,0.00041797,10]
[314204306,1708077061038,-150.45,0.00041798,2]
[314204307,1708077061049,-500.0,0.00041799,30]
[314204308,1708077061059,-573.94,0.00041799,7]
[314204309,1708077061068,-967.23,0.00041799,30]
[314204310,1708077061078,-4204.92,0.00041799,30]
[314204311,1708077061087,-168.26951635,0.00041799,3]
[314204312,1708077061096,-150.0,0.00041799,3]
[314204313,1708077061106,-192661.43557449,0.000418,10]
[314204314,1708077061118,-377.99618548,0.000418,15]
[314204315,1708077061128,-1038.80657497,0.000418,14]
[314204316,1708077061137,-2000.0,0.000418,30]
[314204317,1708077061147,-10000.0,0.000418,5]
[314204318,1708077061156,-150.0,0.000418,2]
[314204319,1708077061166,-150.0,0.00041804,2]
[314204320,1708077061175,-150.0,0.0004181,2]
[314204321,1708077061184,-161.72,0.00041813,2]
[314204322,1708077061193,-352.0,0.00041835,7]
[314204323,1708077061203,-198.0,0.00041835,7]
[314204324,1708077061212,-219.0,0.00041835,7]
[314204325,1708077061222,-150.0,0.00041835,7]
[314204326,1708077061231,-300.0,0.00041835,2]
[314204327,1708077061240,-150.0,0.0004184,2]
[314204328,1708077061249,-151.021633,0.00041848,26]
[314204329,1708077061259,-156.0,0.00041855,7]
[314204330,1708077061268,-150.0,0.00041859,2]
[314204331,1708077061277,-150.01,0.00041889,2]
[314204332,1708077061286,-3316.80182207,0.00041889,2]
[314204333,1708077061295,-981.5815037,0.00041889,2]
[314204334,1708077061305,-620.9170466,0.00041889,2]
[314204335,1708077061389,-29743.1698368,0.00041889,2]
[314204336,1708077061398,-5738.22054872,0.00041891,16]
[314204337,1708077061407,-1500.0,0.00041893,2]
[314204338,1708077061417,-150.0,0.00041893,2]
[314204339,1708077061426,-1000.0,0.00041899,2]
[314204340,1708077061435,-150.0,0.00041899,2]
[314204341,1708077061444,-500.0,0.00041899,30]
[314204342,1708077061453,-573.94,0.00041899,7]
[314204343,1708077061463,-500.0,0.000419,4]
[314204344,1708077061472,-8742.24933073,0.000419,14]
[314204345,1708077061481,-200.0,0.000419,17]
[314204346,1708077061489,-200.0,0.000419,2]
[314204347,1708077061498,-3000.0,0.000419,49]
[314204348,1708077061508,-3000.0,0.000419,49]
[314204349,1708077061517,-5020.34533613,0.000419,2]
[314204350,1708077061526,-5020.34533599,0.000419,2]
[314204351,1708077061536,-5020.34533599,0.000419,2]
[314204352,1708077061545,-5020.34533599,0.000419,2]
[314204353,1708077061554,-5020.34533599,0.000419,2]
[314204354,1708077061564,-5020.34533599,0.000419,2]
[314204355,1708077061573,-5020.34533599,0.000419,2]
[314204356,1708077061581,-5020.34533599,0.000419,2]
[314204357,1708077061590,-5020.34533599,0.000419,2]
[314204358,1708077061599,-5020.34533599,0.000419,2]
[314204359,1708077061609,-5020.34533599,0.000419,2]
[314204360,1708077061617,-5020.34533599,0.000419,2]
[314204361,1708077061627,-5020.34533599,0.000419,2]
[314204362,1708077061636,-5020.34533599,0.000419,2]
[314204363,1708077061645,-5020.34533599,0.000419,2]
[314204364,1708077061654,-5020.34533599,0.000419,2]
[314204365,1708077061663,-5020.34533599,0.000419,2]
[314204366,1708077061672,-5020.34533599,0.000419,2]
[314204367,1708077061682,-5020.34533599,0.000419,2]
[314204368,1708077061691,-5020.34533599,0.000419,2]
[314204369,1708077061700,-3000.0,0.0004191,49]
[314204370,1708077061709,-3000.0,0.0004191,49]
[314204371,1708077061718,-967.23,0.00041918,30]
[314204372,1708077061727,-967.23,0.00041918,30]
[314204373,1708077061737,-967.23,0.00041918,30]
[314204374,1708077061746,-967.23,0.00041918,30]
[314204375,1708077061756,-967.40671412,0.00041918,30]
[314204376,1708077061765,-4204.92,0.00041918,30]
[314204377,1708077061775,-4204.92,0.00041918,30]
[314204378,1708077061784,-4204.92,0.00041918,30]
[314204379,1708077061794,-4204.92,0.00041918,30]
[314204380,1708077061804,-4205.08226269,0.00041918,30]
[314204381,1708077061814,-5483.874982,0.0004192,49]
[314204382,1708077061824,-5483.874982,0.0004192,49]
[314204383,1708077061835,-1367.0555243,0.00041942,2]
[314204384,1708077061846,-681.6179466,0.00041942,2]
[314204385,1708077061857,-32650.8644889,0.00041942,2]
[314204386,1708077061867,-151.021624,0.00041948,27]
[314204387,1708077061876,-500.0,0.00041952,2]
[314204388,1708077061887,-152.66,0.00041963,2]
[314204389,1708077061896,-1752.5295449,0.00041971,2]
[314204390,1708077061906,-2138.0035654,0.00041971,2]
[314204391,1708077061916,-2523.477586,0.00041971,2]
[314204392,1708077061929,-2908.9516066,0.00041971,2]
[314204393,1708077061939,-742.3188465,0.00041971,2]
[314204394,1708077061948,-803.0197464,0.00041971,2]
[314204395,1708077061958,-863.7206464,0.00041971,2]
[314204396,1708077061967,-924.4215463,0.00041971,2]
[314204397,1708077061978,-35558.5591409,0.00041971,2]
[314204398,1708077061988,-38466.253793,0.00041971,2]
[314204399,1708077061998,-177.38,0.00041984,2]
[314204400,1708077062007,-3150.968794,0.0004199,30]
[314204401,1708077062017,-156.0,0.00041992,7]
[314204402,1708077062026,-151.021633,0.00041998,27]
[314204403,1708077062035,-300.0,0.00042,43]
[314204404,1708077062045,-965.23195016,0.00042,7]
[314204405,1708077062054,-308.4792,0.00042,59]
[314204406,1708077062063,-645.15231902,0.00042,120]
[314204407,1708077062073,-6074.34431271,0.00042,4]
[314204408,1708077062083,-500.0,0.00042,7]
[314204409,1708077062093,-6042.27663633,0.00042,5]
[314204410,1708077062102,-600.0,0.00042,30]
[314204411,1708077062112,-1008.98466596,0.00042,25]
[314204412,1708077062134,-260.53609423,0.00042,10]
[314204413,1708077062143,-1038.0,0.00042,30]
[314204414,1708077062153,-961.15785,0.00042,2]
[314204415,1708077062162,-11675.0,0.00042,40]
[314204416,1708077062172,-70000.0,0.00042,3]
[314204417,1708077062182,-200.0,0.00042,30]
[314204418,1708077062191,-330.0,0.00042,6]
[314204419,1708077062200,-800.0,0.00042,4]
[314204420,1708077062210,-597.518403,0.00042,3]
[314204421,1708077062219,-800.0,0.00042,5]
[314204422,1708077062229,-300.0,0.00042,20]
[314204423,1708077062238,-200.0,0.00042,49]
[314204424,1708077062248,-10207.07349007,0.00042,7]
[314204425,1708077062258,-152.15,0.00042,4]
[314204426,1708077062268,-152.15,0.00042,4]
[314204427,1708077062277,-152.15,0.00042,4]
[314204428,1708077062287,-152.15,0.00042,4]
[314204429,1708077062296,-152.15,0.00042,4]
[314204430,1708077062306,-152.15,0.00042,4]
[314204431,1708077062316,-152.15,0.00042,4]
[314204432,1708077062325,-152.15,0.00042,4]
[314204433,1708077062335,-152.15,0.00042,4]
[314204434,1708077062345,-152.15,0.00042,4]
[314204435,1708077062354,-152.15,0.00042,4]
[314204436,1708077062364,-152.15,0.00042,4]
[314204437,1708077062374,-152.15,0.00042,4]
[314204438,1708077062383,-152.15,0.00042,4]
[314204439,1708077062393,-152.15,0.00042,4]
[314204440,1708077062403,-152.15,0.00042,4]
[314204441,1708077062412,-152.15,0.00042,4]
[314204442,1708077062421,-152.15,0.00042,4]
[314204443,1708077062431,-152.15,0.00042,4]
[314204444,1708077062440,-303.92,0.00042,2]
[314204445,1708077062449,-213.0,0.00042003,28]
[314204446,1708077062458,-151.021624,0.00042048,31]
[314204447,1708077062468,-910.14,0.00042064,2]
[314204448,1708077062477,-168.26951635,0.00042066,3]
[314204449,1708077062486,-150.0,0.00042066,3]
[314204450,1708077062496,-41373.948445,0.00042071,2]
[314204451,1708077062505,-209.4040669,0.0004208,30]
[314204452,1708077062514,-573.94,0.0004208,7]
[314204453,1708077062524,-573.94,0.0004208,7]
[314204454,1708077062533,-573.94,0.0004208,7]
[314204455,1708077062542,-573.94,0.0004208,7]
[314204456,1708077062552,-574.06,0.0004208,7]
[314204457,1708077062561,-2000.0,0.00042083,2]
[314204458,1708077062570,-2000.0,0.00042083,2]
[314204459,1708077062579,-1172.71,0.00042092,15]
[314204460,1708077062589,-5011.588624,0.000421,6]
[314204461,1708077062598,-150.45,0.00042103,2]
[314204462,1708077062607,-500.0,0.00042123,2]
[314204463,1708077062616,-156.0,0.00042129,7]
[314204464,1708077062625,-152.6,0.0004214,2]
[314204465,1708077062634,-160.0,0.00042176,30]
[314204466,1708077062643,-1808.29943736,0.00042176,30]
[314204467,1708077062653,-1335.46623208,0.00042176,30]
[314204468,1708077062662,-262.5641355,0.00042176,30]
[314204469,1708077062671,-44281.6430971,0.00042185,2]
[314204470,1708077062681,-1022.0875,0.00042191,7]
[314204471,1708077062690,-185.250615,0.00042192,14]
[314204472,1708077062699,-150.0,0.00042192,2]
[314204473,1708077062709,-456.06347367,0.00042197,2]
[314204474,1708077062820,-151.021624,0.00042198,32]
[314204475,1708077062829,-1000.0,0.000422,2]
[314204476,1708077062839,-352.0,0.00042205,7]
[314204477,1708077062848,-198.0,0.00042205,7]
[314204478,1708077062858,-219.0,0.00042205,7]
[314204479,1708077062868,-150.0,0.00042205,7]
[314204480,1708077062877,-5738.22054872,0.00042228,16]
[314204481,1708077062886,-161.72,0.00042239,2]
[314204482,1708077062895,-100000.0,0.00042243,5]
[314204483,1708077062904,-151.021624,0.00042248,31]
[314204484,1708077062913,-1769.87,0.0004225,7]
[314204485,1708077062922,-1769.87,0.0004225,7]
[314204486,1708077062935,-1769.87,0.0004225,7]
[314204487,1708077062945,-1769.87,0.0004225,7]
[314204488,1708077062954,-156.0,0.00042266,7]
[314204489,1708077062963,-150.0,0.0004229,60]
[314204490,1708077062974,-500.0,0.00042295,2]
[314204491,1708077062983,-200.0,0.000423,16]
[314204492,1708077062993,-168.26951635,0.00042332,3]
[314204493,1708077063003,-150.0,0.00042332,3]
[314204494,1708077063012,-151.021624,0.00042398,31]
[314204495,1708077063021,-200.0,0.000424,18]
[314204496,1708077063031,-159.877779,0.000424,14]
[314204497,1708077063040,-156.0,0.00042403,7]
[314204498,1708077063049,-150.45,0.00042408,2]
[314204499,1708077063059,-287.0,0.00042418,2]
[314204500,1708077063069,-161.31172468,0.00042461,30]
[314204501,1708077063078,-1000.0,0.00042465,3]
[314204502,1708077063089,-500.0,0.00042466,2]
[314204503,1708077063099,-10000.0,0.00042489,21]
[314204504,1708077063108,-151.021624,0.00042498,32]
[314204505,1708077063117,-933.0,0.000425,7]
[314204506,1708077063127,-3800.0,0.000425,60]
[314204507,1708077063136,-5000.0,0.000425,60]
[314204508,1708077063145,-154.88,0.000425,4]
[314204509,1708077063157,-154.88,0.000425,4]
[314204510,1708077063167,-154.88,0.000425,4]
[314204511,1708077063176,-154.88,0.000425,4]
[314204512,1708077063186,-154.88,0.000425,4]
[314204513,1708077063195,-154.88,0.000425,4]
[314204514,1708077063204,-152.15,0.000425,4]
[314204515,1708077063215,-152.15,0.000425,4]
[314204516,1708077063224,-152.15,0.000425,4]
[314204517,1708077063234,-152.15,0.000425,4]
[314204518,1708077063244,-152.15,0.000425,4]
[314204519,1708077063254,-152.15,0.000425,4]
[314204520,1708077063264,-152.15,0.000425,4]
[314204521,1708077063273,-152.15,0.000425,4]
[314204522,1708077063283,-152.15,0.000425,4]
[314204523,1708077063293,-152.15,0.000425,4]
[314204524,1708077063302,-152.15,0.000425,4]
[314204525,1708077063312,-152.15,0.000425,4]
[314204526,1708077063322,-152.15,0.000425,4]
[314204527,1708077063331,-152.15,0.000425,4]
[314204528,1708077063341,-152.15,0.000425,4]
[314204529,1708077063350,-152.15,0.000425,4]
[314204530,1708077063360,-152.15,0.000425,4]
[314204531,1708077063370,-152.15,0.000425,4]
[314204532,1708077063379,-152.15,0.000425,4]
[314204533,1708077063389,-1000.0,0.000425,30]
[314204534,1708077063397,-1769.87,0.00042523,7]
[314204535,1708077063407,-1769.87,0.00042523,7]
[314204536,1708077063416,-152.6,0.00042531,2]
[314204537,1708077063425,-177.38,0.00042532,2]
[314204538,1708077063435,-156.0,0.0004254,7]
[314204539,1708077063444,-151.021624,0.00042548,31]
[314204540,1708077063454,-206.0,0.00042552,12]
[314204541,1708077063462,-5738.22054872,0.00042564,17]
[314204542,1708077063472,-352.0,0.00042574,7]
[314204543,1708077063481,-198.0,0.00042574,7]
[314204544,1708077063491,-219.0,0.00042574,7]
[314204545,1708077063500,-150.0,0.00042574,7]
[314204546,1708077063509,-159.0057697,0.0004259,7]
[314204547,1708077063518,-159.0057697,0.0004259,7]
[314204548,1708077063528,-159.0057697,0.0004259,7]
[314204549,1708077063538,-159.0057697,0.0004259,7]
[314204550,1708077063548,-159.0057697,0.0004259,7]
[314204551,1708077063557,-159.0057697,0.0004259,7]
[314204552,1708077063567,-159.0057697,0.0004259,7]
[314204553,1708077063576,-159.0057697,0.0004259,7]
[314204554,1708077063585,-159.0057697,0.0004259,7]
[314204555,1708077063595,-159.0057697,0.0004259,7]
[314204556,1708077063604,-159.0057697,0.0004259,7]
[314204557,1708077063613,-159.0057697,0.0004259,7]
[314204558,1708077063623,-159.0057697,0.0004259,7]
[314204559,1708077063633,-159.0057697,0.0004259,7]
[314204560,1708077063642,-159.0057697,0.0004259,7]
[314204561,1708077063651,-159.0,0.0004259,7]
[314204562,1708077063660,-152.0,0.00042593,3]
[314204563,1708077063669,-160.0,0.00042598,30]
[314204564,1708077063679,-168.26951635,0.00042599,4]
[314204565,1708077063688,-150.0,0.00042599,4]
[314204566,1708077063697,-174.55618684,0.000426,7]
[314204567,1708077063706,-174.55618684,0.000426,7]
[314204568,1708077063715,-174.55618684,0.000426,7]
[314204569,1708077063724,-174.55618684,0.000426,7]
[314204570,1708077063733,-174.55618684,0.000426,7]
[314204571,1708077063742,-174.55618684,0.000426,7]
[314204572,1708077063752,-174.55618684,0.000426,7]
[314204573,1708077063761,-174.55618684,0.000426,7]
[314204574,1708077063770,-174.55618684,0.000426,7]
[314204575,1708077063779,-174.55618684,0.000426,7]
[314204576,1708077063788,-174.55618684,0.000426,7]
[314204577,1708077063797,-174.55618684,0.000426,7]
[314204578,1708077063806,-174.55618684,0.000426,7]
[314204579,1708077063815,-174.55618684,0.000426,7]
[314204580,1708077063825,-174.55618684,0.000426,7]
[314204581,1708077063833,-174.55618684,0.000426,7]
[314204582,1708077063843,-174.55618684,0.000426,7]
[314204583,1708077063853,-174.55618684,0.000426,7]
[314204584,1708077063862,-174.55618684,0.000426,7]
[314204585,1708077063872,-174.55,0.000426,7]
[314204586,1708077063881,-158.38694998,0.000426,7]
[314204587,1708077063890,-158.38694998,0.000426,7]
[314204588,1708077063899,-158.38694998,0.000426,7]
[314204589,1708077063908,-158.38694998,0.000426,7]
[314204590,1708077063916,-158.38694998,0.000426,7]
[314204591,1708077063928,-158.38694998,0.000426,7]
[314204592,1708077063938,-158.38694998,0.000426,7]
[314204593,1708077063948,-158.38694998,0.000426,7]
[314204594,1708077063957,-158.38,0.000426,7]
[314204595,1708077063968,-150.11241153,0.000426,7]
[314204596,1708077063977,-150.11241153,0.000426,7]
[314204597,1708077063987,-150.11241153,0.000426,7]
[314204598,1708077063996,-150.11241153,0.000426,7]
[314204599,1708077064006,-150.11241153,0.000426,7]
[314204600,1708077064022,-150.11241153,0.000426,7]
[314204601,1708077064031,-150.11241153,0.000426,7]
[314204602,1708077064041,-150.11241153,0.000426,7]
[314204603,1708077064126,-150.11241153,0.000426,7]
[314204604,1708077064137,-150.11241153,0.000426,7]
[314204605,1708077064147,-150.11241153,0.000426,7]
[314204606,1708077064156,-150.11241153,0.000426,7]
[314204607,1708077064165,-150.11241153,0.000426,7]
[314204608,1708077064174,-150.11241153,0.000426,7]
[314204609,1708077064184,-150.11,0.000426,7]
[314204610,1708077064192,-152.95646626,0.000426,7]
[314204611,1708077064202,-152.95646626,0.000426,7]
[314204612,1708077064214,-152.95646626,0.000426,7]
[314204613,1708077064223,-152.95646626,0.000426,7]
[314204614,1708077064232,-152.95646626,0.000426,7]
[314204615,1708077064241,-152.95646626,0.000426,7]
[314204616,1708077064251,-152.95646626,0.000426,7]
[314204617,1708077064260,-152.95646626,0.000426,7]
[314204618,1708077064269,-152.95646626,0.000426,7]
[314204619,1708077064279,-152.95646626,0.000426,7]
[314204620,1708077064288,-152.95646626,0.000426,7]
[314204621,1708077064298,-152.95646626,0.000426,7]
[314204622,1708077064307,-152.95646626,0.000426,7]
[314204623,1708077064316,-152.95646626,0.000426,7]
[314204624,1708077064325,-152.95646626,0.000426,7]
[314204625,1708077064334,-152.95646626,0.000426,7]
[314204626,1708077064344,-152.95,0.000426,7]
[314204627,1708077064354,-964.3524022,0.000426,7]
[314204628,1708077064365,-150.0,0.000426,17]
[314204629,1708077064375,-150.0,0.000426,14]
[314204630,1708077064384,-150.0,0.000426,17]
[314204631,1708077064394,-1899.99271,0.000426,17]
[314204632,1708077064403,-444.38,0.00042617,2]
[314204633,1708077064412,-5028.84624869,0.00042619,30]
[314204634,1708077064422,-500.0,0.00042637,2]
[314204635,1708077064431,-151.021624,0.00042648,31]
[314204636,1708077064441,-162.71,0.0004265,61]
[314204637,1708077064451,-150.5,0.0004265,61]
[314204638,1708077064461,-150.5,0.0004266,61]
[314204639,1708077064471,-150.5,0.0004266,61]
[314204640,1708077064481,-150.5,0.0004267,61]
[314204641,1708077064491,-150.5,0.0004267,61]
[314204642,1708077064501,-156.0,0.00042677,7]
[314204643,1708077064511,-912.12694734,0.00042687,2]
[314204644,1708077064521,-784048.7864563,0.0004269,30]
[314204645,1708077064531,-804132.32915413,0.0004269,30]
[314204646,1708077064818,-201305.2055736,0.0004269,30]
[314204647,1708077064840,-38263.07527227,0.0004269,30]
[314204648,1708077064869,-242.87200005,0.0004269,30]
[314204649,1708077064890,-2587.66508565,0.0004269,30]
[314204650,1708077064908,-592.49487706,0.0004269,30]
[314204651,1708077064924,-1694.81344363,0.0004269,30]
[314204652,1708077064946,-8637.47744595,0.0004269,30]
[314204653,1708077064966,-2675.22797836,0.0004269,30]
[314204654,1708077064979,-150.0,0.00042699,60]
[314204655,1708077064995,-9657.5395758,0.000427,5]
[314204656,1708077065013,-433.46,0.000427,7]
[314204657,1708077065028,-359.83,0.000427,7]
[314204658,1708077065043,-2266.65,0.000427,7]
[314204659,1708077065058,-127995.19056712,0.000427,35]
[314204660,1708077065077,-1083.91169171,0.000427,35]
[314204661,1708077065095,-161543.00166281,0.000427,35]
[314204662,1708077065116,-494.00740876,0.000427,35]
[314204663,1708077065140,-584.01055731,0.000427,35]
[314204664,1708077065157,-2071.2817421,0.000427,35]
[314204665,1708077065173,-412.75553074,0.000427,35]
[314204666,1708077065201,-500.0,0.00041095,30]
[314204667,1708077065211,-554.66949387,0.00041095,30]